fUSD/lending_fUSD_20250123
["ID","MTS","AMOUNT","RATE_DAILY","PERIOD"]
[350125569,1737645033880,-500.0,0.00016438,2]
[350125571,1737645033891,-500.0,0.00016438,2]
[350125572,1737645033902,-500.0,0.00016438,2]
[350125574,1737645033912,-770.38,0.00016438,2]
[350125577,1737645033922,-500.0,0.00016438,2]
[350125578,1737645033931,-500.0,0.00016438,2]
[350125580,1737645033940,-500.0,0.00016438,2]
[350125582,1737645033950,-500.0,0.00016438,2]
[350125584,1737645033960,-553.93,0.00016438,2]
[350125587,1737645033970,-500.0,0.00016438,2]
[350125588,1737645033979,-816.19,0.00016438,2]
[350125590,1737645033989,-500.0,0.00016438,2]
[350125592,1737645033999,-500.0,0.00016438,2]
[350125595,1737645034008,-500.0,0.00016438,2]
[350125596,1737645034017,-629.36732069,0.00016438,2]
[350125599,1737645034028,-500.0,0.00016438,2]
[350125601,1737645034037,-305.94320592,0.00016438,2]
[350125602,1737645034050,-500.0,0.00016438,2]
[350125605,1737645034060,-500.0,0.00016438,2]
[350125624,1737645034240,-500.0,0.00016438,2]
[350125627,1737645034250,-500.0,0.00016438,2]
[350125629,1737645034260,-500.0,0.00016438,2]
[350125631,1737645034269,-500.0,0.00016438,2]
[350125633,1737645034279,-500.0,0.00016438,2]
[350125635,1737645034289,-500.0,0.00016438,2]
[350125637,1737645034301,-500.0,0.00016438,2]
[350125639,1737645034310,-500.0,0.00016438,2]
[350125641,1737645034320,-500.0,0.00016438,2]
[350125643,1737645034331,-500.0,0.00016438,2]
[350125645,1737645034341,-500.0,0.00016438,2]
[350125647,1737645034350,-200.0,0.00016438,2]
[350125649,1737645034360,-500.0,0.00016438,2]
[350125651,1737645034370,-533.86,0.00016438,2]
[350125653,1737645034380,-500.0,0.00016438,2]
[350125655,1737645034389,-500.0,0.00016438,2]
[350125657,1737645034399,-500.0,0.00016438,2]
[350125659,1737645034408,-500.0,0.00016438,2]
[350125661,1737645034418,-500.0,0.00016438,2]
[350125663,1737645034429,-500.0,0.00016438,2]
[350125665,1737645034438,-500.0,0.00016438,2]
[350125667,1737645034448,-500.0,0.00016438,2]
[350125669,1737645034458,-500.0,0.00016438,2]
[350125671,1737645034468,-500.0,0.00016438,2]
[350125673,1737645034479,-500.0,0.00016438,2]
[350125675,1737645034488,-500.0,0.00016438,2]
[350125677,1737645034498,-500.0,0.00016438,2]
[350125679,1737645034508,-500.0,0.00016438,2]
[350125681,1737645034518,-500.0,0.00016438,2]
[350125683,1737645034530,-500.0,0.00016438,2]
[350125685,1737645034539,-500.0,0.00016438,2]
[350125687,1737645034555,-500.0,0.00016438,2]
[350125689,1737645034566,-483.49984756,0.00016438,2]
[350125691,1737645034576,-665.01,0.00016438,2]
[350125693,1737645034587,-500.0,0.00016438,2]
[350125695,1737645034601,-500.0,0.00016438,2]
[350125697,1737645034612,-530.63776187,0.00016438,2]
[350125699,1737645034623,-500.0,0.00016438,2]
[350125701,1737645034634,-591.449939,0.00016438,2]
[350125703,1737645034645,-500.0,0.00016438,2]
[350125705,1737645034654,-598.39,0.00016438,2]
[350125707,1737645034665,-501.73498177,0.00016438,2]
[350125709,1737645034674,-500.0,0.00016438,2]
[350125711,1737645034685,-500.0,0.00016438,2]
[350125713,1737645034695,-500.0,0.00016438,2]
[350125715,1737645034705,-544.61373762,0.00016438,2]
[350125717,1737645034717,-386.77055246,0.00016438,2]
[350125719,1737645034727,-666.93,0.00016438,2]
[350125721,1737645034737,-500.0,0.00016438,2]
[350125723,1737645034747,-368.9271341,0.00016438,2]
[350125725,1737645034757,-506.66081669,0.00016438,2]
[350125727,1737645034766,-500.0,0.00016438,2]
[350125729,1737645034775,-500.0,0.00016438,2]
[350125731,1737645034785,-500.0,0.00016438,2]
[350125733,1737645034800,-665.125062,0.00016438,2]
[350125735,1737645034810,-500.0,0.00016438,2]
[350125737,1737645034820,-611.43,0.00016438,2]
[350125739,1737645034830,-500.0,0.00016438,2]
[350125741,1737645034839,-500.0,0.00016438,2]
[350125743,1737645034849,-500.0,0.00016438,2]
[350125745,1737645034859,-500.0,0.00016438,2]
[350125747,1737645034868,-500.0,0.00016438,2]
[350125749,1737645034878,-500.0,0.00016438,2]
[350125751,1737645034887,-500.0,0.00016438,2]
[350125753,1737645034897,-500.0,0.00016438,2]
[350125755,1737645034906,-500.0,0.00016438,2]
[350125757,1737645034915,-500.0,0.00016438,2]
[350125759,1737645034925,-456.22464297,0.00016438,2]
[350125762,1737645034945,-43.77535703,0.00016438,2]
[350125764,1737645034954,-206.75437811,0.00016438,2]
[350125767,1737645034970,-293.24562189,0.00016438,2]
[350125769,1737645034979,-500.0,0.00016438,2]
[350125771,1737645034988,-500.0,0.00016438,2]
[350125773,1737645034998,-507.61127453,0.00016438,2]
[350125775,1737645035007,-500.0,0.00016438,2]
[350125777,1737645035017,-500.0,0.00016438,2]
[350125779,1737645035027,-500.0,0.00016438,2]
[350125781,1737645035036,-500.0,0.00016438,2]
[350125783,1737645035045,-500.0,0.00016438,2]
[350125785,1737645035058,-500.0,0.00016438,2]
[350125787,1737645035068,-500.0,0.00016438,2]
[350125789,1737645035079,-500.0,0.00016438,2]
[350125791,1737645035089,-500.0,0.00016438,2]
[350125793,1737645035098,-500.0,0.00016438,2]
[350125795,1737645035107,-500.0,0.00016438,2]
[350125797,1737645035117,-500.0,0.00016438,2]
[350125799,1737645035130,-500.0,0.00016438,2]
[350125801,1737645035139,-645.07,0.00016438,2]
[350125802,1737645035148,-618.87111228,0.00016438,2]
[350125805,1737645035157,-506.78946765,0.00016438,2]
[350125807,1737645035166,-500.0,0.00016438,2]
[350125809,1737645035175,-247.94629441,0.00016438,2]
[350125811,1737645035185,-504.03284647,0.00016438,2]
[350125813,1737645035195,-500.0,0.00016438,2]
[350125815,1737645035205,-500.0,0.00016438,2]
[350125817,1737645035214,-500.0,0.00016438,2]
[350125819,1737645035223,-500.0,0.00016438,2]
[350125821,1737645035232,-500.0,0.00016438,2]
[350125823,1737645035242,-500.0,0.00016438,2]
[350125825,1737645035251,-500.0,0.00016438,2]
[350125827,1737645035261,-500.0,0.00016438,2]
[350125829,1737645035271,-500.0,0.00016438,2]
[350125831,1737645035279,-462.93488849,0.00016438,2]
[350125833,1737645035290,-500.0,0.00016438,2]
[350125835,1737645035303,-574.7,0.00016438,2]
[350125837,1737645035313,-500.0,0.00016438,2]
[350125839,1737645035322,-500.0,0.00016438,2]
[350125841,1737645035331,-500.0,0.00016438,2]
[350125843,1737645035340,-526.08178114,0.00016438,2]
[350125845,1737645035349,-500.0,0.00016438,2]
[350125847,1737645035358,-500.0,0.00016438,2]
[350125849,1737645035368,-502.88653398,0.00016438,2]
[350125851,1737645035379,-500.0,0.00016438,2]
[350125853,1737645035389,-500.0,0.00016438,2]
[350125855,1737645035400,-500.0,0.00016438,2]
[350125857,1737645035410,-665.43,0.00016438,2]
[350125859,1737645035419,-288.2377084,0.00016438,2]
[350125861,1737645035428,-500.0,0.00016438,2]
[350125863,1737645035443,-500.0,0.00016438,2]
[350125865,1737645035453,-447.06582982,0.00016438,2]
[350125867,1737645035463,-500.0,0.00016438,2]
[350125869,1737645035473,-500.0,0.00016438,2]
[350125871,1737645035482,-500.0,0.00016438,2]
[350125873,1737645035491,-290.89147074,0.00016438,2]
[350125875,1737645035500,-506.25064628,0.00016438,2]
[350125876,1737645035509,-500.0,0.00016438,2]
[350125878,1737645035518,-643.73,0.00016438,2]
[350125881,1737645035527,-500.0,0.00016438,2]
[350125883,1737645035537,-500.0,0.00016438,2]
[350125884,1737645035547,-500.0,0.00016438,2]
[350125886,1737645035557,-500.0,0.00016438,2]
[350125888,1737645035566,-512.19,0.00016438,2]
[350125890,1737645035575,-500.0,0.00016438,2]
[350125892,1737645035584,-661.94,0.00016438,2]
[350125894,1737645035593,-500.0,0.00016438,2]
[350125896,1737645035603,-500.0,0.00016438,2]
[350125899,1737645035614,-667.89,0.00016438,2]
[350125900,1737645035622,-539.11,0.00016438,2]
[350125902,1737645035632,-291.78626207,0.00016438,2]
[350125905,1737645035641,-624.02,0.00016438,2]
[350125906,1737645035651,-500.0,0.00016438,2]
[350125909,1737645035662,-500.0,0.00016438,2]
[350125911,1737645035671,-500.0,0.00016438,2]
[350125913,1737645035681,-500.0,0.00016438,2]
[350125915,1737645035690,-500.0,0.00016438,2]
[350125917,1737645035699,-500.0,0.00016438,2]
[350125918,1737645035709,-500.0,0.00016438,2]
[350125920,1737645035718,-500.0,0.00016438,2]
[350125922,1737645035728,-652.9,0.00016438,2]
[350125924,1737645035737,-566.04,0.00016438,2]
[350125926,1737645035747,-500.0,0.00016438,2]
[350125929,1737645035756,-500.0,0.00016438,2]
[350125931,1737645035765,-500.0,0.00016438,2]
[350125932,1737645035775,-500.0,0.00016438,2]
[350125935,1737645035784,-618.01,0.00016438,2]
[350125937,1737645035793,-500.0,0.00016438,2]
[350125939,1737645035807,-607.91,0.00016438,2]
[350125941,1737645035816,-530.48,0.00016438,2]
[350125943,1737645035825,-500.0,0.00016438,2]
[350125945,1737645035834,-500.0,0.00016438,2]
[350125947,1737645035844,-500.0,0.00016438,2]
[350125949,1737645035853,-500.0,0.00016438,2]
[350125950,1737645035862,-500.0,0.00016438,2]
[350125952,1737645035871,-500.0,0.00016438,2]
[350125954,1737645035880,-500.0,0.00016438,2]
[350125956,1737645035889,-500.0,0.00016438,2]
[350125958,1737645035898,-500.0,0.00016438,2]
[350125960,1737645035908,-500.0,0.00016438,2]
[350125962,1737645035917,-500.0,0.00016438,2]
[350125964,1737645035926,-690.5,0.00016438,2]
[350125966,1737645035938,-508.97264046,0.00016438,2]
[350125968,1737645035950,-731.93,0.00016438,2]
[350125969,1737645035960,-2136.21,0.00016438,2]
[350125970,1737645035969,-248.24377808,0.00016438,2]
[350125971,1737645035978,-500.0,0.00016438,2]
[350125972,1737645035987,-500.0,0.00016438,2]
[350125973,1737645035997,-500.0,0.00016438,2]
[350125974,1737645036008,-500.0,0.00016438,2]
[350125975,1737645036017,-719.7,0.00016438,2]
[350125976,1737645036027,-500.0,0.00016438,2]
[350125978,1737645036037,-500.0,0.00016438,2]
[350125980,1737645036051,-1077.18,0.00016438,2]
[350125982,1737645036063,-500.0,0.00016438,2]
[350125984,1737645036074,-689.78,0.00016438,2]
[350125986,1737645036088,-2051.15,0.00016438,2]
[350125988,1737645036099,-500.0,0.00016438,2]
[350125990,1737645036108,-500.0,0.00016438,2]
[350125992,1737645036118,-500.0,0.00016438,2]
[350125994,1737645036132,-500.0,0.00016438,2]
[350125996,1737645036142,-500.0,0.00016438,2]
[350125998,1737645036152,-500.0,0.00016438,2]
[350126000,1737645036162,-636.7,0.00016438,2]
[350126002,1737645036172,-500.0,0.00016438,2]
[350126004,1737645036182,-1135.64,0.00016438,2]
[350126006,1737645036191,-500.0,0.00016438,2]
[350126008,1737645036202,-767.11,0.00016438,2]
[350126010,1737645036211,-1199.19,0.00016438,2]
[350126012,1737645036220,-500.0,0.00016438,2]
[350126014,1737645036231,-500.0,0.00016438,2]
[350126016,1737645036241,-500.0,0.00016438,2]
[350126018,1737645036251,-500.0,0.00016438,2]
[350126020,1737645036261,-2308.51,0.00016438,2]
[350126022,1737645036270,-500.0,0.00016438,2]
[350126023,1737645036279,-1391.13,0.00016438,2]
[350126025,1737645036291,-698.63,0.00016438,2]
[350126027,1737645036306,-562.02,0.00016438,2]
[350126029,1737645036315,-891.18,0.00016438,2]
[350126031,1737645036325,-500.0,0.00016438,2]
[350126033,1737645036334,-819.79,0.00016438,2]
[350126036,1737645036344,-2597.36,0.00016438,2]
[350126038,1737645036354,-500.0,0.00016438,2]
[350126039,1737645036364,-2134.79,0.00016438,2]
[350126041,1737645036374,-500.0,0.00016438,2]
[350126043,1737645036383,-500.0,0.00016438,2]
[350126045,1737645036392,-500.0,0.00016438,2]
[350126047,1737645036402,-1084.72,0.00016438,2]
[350126049,1737645036411,-500.0,0.00016438,2]
[350126052,1737645036421,-500.0,0.00016438,2]
[350126054,1737645036430,-500.0,0.00016438,2]
[350126056,1737645036439,-500.0,0.00016438,2]
[350126058,1737645036449,-500.0,0.00016438,2]
[350126059,1737645036458,-844.37,0.00016438,2]
[350126061,1737645036467,-875.15,0.00016438,2]
[350126063,1737645036477,-560.99,0.00016438,2]
[350126066,1737645036486,-500.0,0.00016438,2]
[350126068,1737645036496,-500.0,0.00016438,2]
[350126070,1737645036505,-1539.16,0.00016438,2]
[350126072,1737645036515,-478.04140131,0.00016438,2]
[350126074,1737645036524,-3578.96,0.00016438,2]
[350126076,1737645036534,-961.42,0.00016438,2]
[350126077,1737645036543,-500.0,0.00016438,2]
[350126079,1737645036556,-500.0,0.00016438,2]
[350126081,1737645036569,-500.0,0.00016438,2]
[350126083,1737645036578,-500.0,0.00016438,2]
[350126085,1737645036587,-1081.57,0.00016438,2]
[350126087,1737645036597,-1292.3,0.00016438,2]
[350126089,1737645036606,-500.0,0.00016438,2]
[350126091,1737645036615,-500.0,0.00016438,2]
[350126093,1737645036625,-1071.81,0.00016438,2]
[350126095,1737645036634,-942.02,0.00016438,2]
[350126097,1737645036643,-663.05,0.00016438,2]
[350126099,1737645036652,-571.59,0.00016438,2]
[350126101,1737645036662,-500.0,0.00016438,2]
[350126103,1737645036671,-860.73,0.00016438,2]
[350126105,1737645036680,-500.0,0.00016438,2]
[350126107,1737645036690,-500.0,0.00016438,2]
[350126109,1737645036699,-500.0,0.00016438,2]
[350126111,1737645036708,-500.0,0.00016438,2]
[350126113,1737645036718,-1013.61,0.00016438,2]
[350126115,1737645036727,-500.0,0.00016438,2]
[350126117,1737645036737,-2194.45,0.00016438,2]
[350126119,1737645036746,-2177.45,0.00016438,2]
[350126121,1737645036755,-500.0,0.00016438,2]
[350126123,1737645036764,-500.0,0.00016438,2]
[350126125,1737645036773,-500.0,0.00016438,2]
[350126127,1737645036783,-500.0,0.00016438,2]
[350126129,1737645036792,-1776.29,0.00016438,2]
[350126131,1737645036804,-500.0,0.00016438,2]
[350126133,1737645036814,-500.0,0.00016438,2]
[350126135,1737645036823,-1994.1,0.00016438,2]
[350126137,1737645036832,-568.36,0.00016438,2]
[350126139,1737645036841,-500.0,0.00016438,2]
[350126141,1737645036850,-500.0,0.00016438,2]
[350126143,1737645036860,-500.0,0.00016438,2]
[350126145,1737645036869,-500.0,0.00016438,2]
[350126147,1737645036878,-2026.27,0.00016438,2]
[350126149,1737645036887,-802.95,0.00016438,2]
[350126151,1737645036896,-500.0,0.00016438,2]
[350126153,1737645036905,-500.0,0.00016438,2]
[350126155,1737645036915,-1138.65,0.00016438,2]
[350126157,1737645036924,-213.89161808,0.00016438,2]
[350126159,1737645036933,-633.78,0.00016438,2]
[350126161,1737645036942,-2021.12,0.00016438,2]
[350126163,1737645036951,-2256.79,0.00016438,2]
[350126165,1737645036960,-417.02999382,0.00016438,2]
[350126167,1737645036970,-926.7,0.00016438,2]
[350126169,1737645036979,-564.50753873,0.00016438,2]
[350126171,1737645036988,-500.0,0.00016438,2]
[350126173,1737645036999,-647.06,0.00016438,2]
[350126175,1737645037009,-500.0,0.00016438,2]
[350126177,1737645037018,-500.0,0.00016438,2]
[350126179,1737645037027,-694.41,0.00016438,2]
[350126181,1737645037038,-1999.78,0.00016438,2]
[350126183,1737645037050,-500.0,0.00016438,2]
[350126185,1737645037060,-500.0,0.00016438,2]
[350126187,1737645037069,-1677.66,0.00016438,2]
[350126189,1737645037081,-500.0,0.00016438,2]
[350126191,1737645037091,-1225.64,0.00016438,2]
[350126193,1737645037100,-620.21,0.00016438,2]
[350126195,1737645037110,-2256.93,0.00016438,2]
[350126197,1737645037122,-500.0,0.00016438,2]
[350126199,1737645037131,-500.0,0.00016438,2]
[350126201,1737645037140,-3498.12,0.00016438,2]
[350126203,1737645037150,-500.0,0.00016438,2]
[350126220,1737645037295,-500.0,0.00016438,2]
[350126222,1737645037309,-332.91086251,0.00016438,2]
[350126224,1737645037319,-1145.96,0.00016438,2]
[350126226,1737645037328,-949.84,0.00016438,2]
[350126228,1737645037338,-500.0,0.00016438,2]
[350126230,1737645037348,-500.0,0.00016438,2]
[350126232,1737645037357,-1175.82,0.00016438,2]
[350126234,1737645037366,-500.0,0.00016438,2]
[350126236,1737645037375,-344.5125989,0.00016438,2]
[350126238,1737645037385,-500.0,0.00016438,2]
[350126240,1737645037394,-500.0,0.00016438,2]
[350126242,1737645037403,-500.0,0.00016438,2]
[350126244,1737645037412,-1697.68,0.00016438,2]
[350126246,1737645037421,-2367.62,0.00016438,2]
[350126248,1737645037430,-500.0,0.00016438,2]
[350126250,1737645037439,-500.0,0.00016438,2]
[350126252,1737645037449,-1190.26,0.00016438,2]
[350126254,1737645037458,-500.0,0.00016438,2]
[350126256,1737645037468,-1015.53,0.00016438,2]
[350126258,1737645037478,-941.79,0.00016438,2]
[350126260,1737645037487,-500.0,0.00016438,2]
[350126262,1737645037497,-500.0,0.00016438,2]
[350126264,1737645037506,-500.0,0.00016438,2]
[350126266,1737645037516,-649.32463448,0.00016438,2]
[350126268,1737645037526,-500.0,0.00016438,2]
[350126270,1737645037535,-500.0,0.00016438,2]
[350126272,1737645037545,-768.15,0.00016438,2]
[350126274,1737645037562,-2329.03,0.00016438,2]
[350126276,1737645037573,-1787.15,0.00016438,2]
[350126278,1737645037584,-500.0,0.00016438,2]
[350126280,1737645037594,-500.0,0.00016438,2]
[350126282,1737645037604,-500.0,0.00016438,2]
[350126284,1737645037614,-500.0,0.00016438,2]
[350126286,1737645037625,-503.37,0.00016438,2]
[350126288,1737645037635,-500.0,0.00016438,2]
[350126290,1737645037647,-947.65,0.00016438,2]
[350126292,1737645037658,-846.16,0.00016438,2]
[350126294,1737645037668,-367.85916417,0.00016438,2]
[350126296,1737645037677,-500.0,0.00016438,2]
[350126298,1737645037686,-500.0,0.00016438,2]
[350126300,1737645037696,-505.14550335,0.00016438,2]
[350126302,1737645037705,-500.0,0.00016438,2]
[350126304,1737645037714,-500.0,0.00016438,2]
[350126306,1737645037724,-667.14,0.00016438,2]
[350126308,1737645037733,-500.0,0.00016438,2]
[350126310,1737645037742,-641.82,0.00016438,2]
[350126312,1737645037752,-1623.82,0.00016438,2]
[350126314,1737645037762,-867.94,0.00016438,2]
[350126315,1737645037771,-500.0,0.00016438,2]
[350126317,1737645037780,-891.94,0.00016438,2]
[350126319,1737645037790,-500.0,0.00016438,2]
[350126321,1737645037804,-500.0,0.00016438,2]
[350126323,1737645037814,-500.0,0.00016438,2]
[350126325,1737645037823,-500.0,0.00016438,2]
[350126328,1737645037834,-500.0,0.00016438,2]
[350126330,1737645037844,-504.32622381,0.00016438,2]
[350126331,1737645037854,-2335.77,0.00016438,2]
[350126334,1737645037865,-500.0,0.00016438,2]
[350126336,1737645037877,-848.4,0.00016438,2]
[350126338,1737645037888,-444.09053113,0.00016438,2]
[350126340,1737645037898,-1465.77,0.00016438,2]
[350126342,1737645037924,-500.0,0.00016438,2]
[350126344,1737645037934,-505.63220965,0.00016438,2]
[350126346,1737645037945,-867.64,0.00016438,2]
[350126348,1737645037955,-500.0,0.00016438,2]
[350126350,1737645037965,-468.73960977,0.00016438,2]
[350126353,1737645037984,-31.26039023,0.00016438,2]
[350126355,1737645037994,-681.4,0.00016438,2]
[350126357,1737645038003,-153.394175,0.00016438,2]
[350126359,1737645038012,-500.0,0.00016438,2]
[350126361,1737645038022,-500.0,0.00016438,2]
[350126363,1737645038031,-500.0,0.00016438,2]
[350126365,1737645038041,-500.0,0.00016438,2]
[350126367,1737645038055,-1257.3,0.00016438,2]
[350126369,1737645038064,-914.06,0.00016438,2]
[350126371,1737645038074,-500.0,0.00016438,2]
[350126372,1737645038085,-546.73,0.00016438,2]
[350126374,1737645038095,-500.0,0.00016438,2]
[350126377,1737645038105,-592.48,0.00016438,2]
[350126379,1737645038118,-500.0,0.00016438,2]
[350126381,1737645038127,-500.0,0.00016438,2]
[350126383,1737645038137,-337.47189902,0.00016438,2]
[350126386,1737645038146,-1167.46,0.00016438,2]
[350126388,1737645038157,-198.45762138,0.00016438,2]
[350126391,1737645038166,-2691.81,0.00016438,2]
[350126394,1737645038176,-500.0,0.00016438,2]
[350126396,1737645038185,-515.32773155,0.00016438,2]
[350126398,1737645038195,-2081.79,0.00016438,2]
[350126400,1737645038204,-500.0,0.00016438,2]
[350126402,1737645038214,-500.0,0.00016438,2]
[350126404,1737645038223,-961.82,0.00016438,2]
[350126406,1737645038233,-195.95486106,0.00016438,2]
[350126408,1737645038242,-212.94953146,0.00016438,2]
[350126410,1737645038252,-200.0,0.00016518,2]
[350126412,1737645038262,-519.3239833,0.00016522,2]
[350126414,1737645038271,-519.3239833,0.00016527,2]
[350126416,1737645038281,-7695.26146907,0.00016542,2]
[350126418,1737645038290,-200.0,0.00016543,2]
[350126420,1737645038304,-673.0289804,0.00016545,2]
[350126421,1737645038313,-519.3239833,0.00016548,2]
[350126422,1737645038323,-200.0,0.00016565,2]
[350126424,1737645038332,-519.3239833,0.00016576,2]
[350126425,1737645038342,-200.0,0.00016577,2]
[350126426,1737645038351,-164.20627351,0.0001658,2]
[350126427,1737645038361,-1772.522,0.00016581,2]
[350126428,1737645038371,-200.0,0.00016585,2]
[350126429,1737645038381,-7695.26146907,0.00016585,2]
[350126431,1737645038391,-200.0,0.00016587,2]
[350126433,1737645038401,-200.0,0.0001659,2]
[350126435,1737645038411,-519.3239833,0.00016592,2]
[350126437,1737645038421,-3961.3799,0.000166,2]
[350126439,1737645038430,-500.0,0.000166,6]
[350126441,1737645038440,-7695.26146907,0.00016611,2]
[350126443,1737645038450,-6276.8223,0.00016612,2]
[350126445,1737645038460,-7695.26146907,0.00016617,2]
[350126447,1737645038471,-200.0,0.00016642,2]
[350126449,1737645038481,-2941.8674215,0.00016646,2]
[350126451,1737645038491,-2000.0,0.00016648,3]
[350126454,1737645038501,-7695.26146907,0.00016648,2]
[350126455,1737645038511,-150.0,0.000167,2]
[350126457,1737645038521,-1000.0,0.000167,6]
[350126460,1737645038532,-1006.26165682,0.0001671,5]
[350126462,1737645038542,-960.3,0.00016711,2]
[350126464,1737645038556,-2470.74,0.00016711,2]
[350126466,1737645038566,-4542.13,0.00016711,2]
[350126467,1737645038577,-964.26,0.00016711,2]
[350126469,1737645038587,-849.38,0.00016711,2]
[350126472,1737645038599,-1962.43,0.00016711,2]
[350126474,1737645038609,-500.0,0.00016711,2]
[350126476,1737645038620,-841.35,0.00016711,2]
[350126478,1737645038630,-1238.96,0.00016711,2]
[350126479,1737645038640,-1489.33,0.00016711,2]
[350126481,1737645038650,-500.0,0.00016711,2]
[350126484,1737645038663,-1000.0,0.00016711,2]
[350126486,1737645038674,-1181.81,0.00016711,2]
[350126488,1737645038685,-517.92,0.00016711,2]
[350126490,1737645038695,-1401.97,0.00016711,2]
[350126492,1737645038705,-1626.6,0.00016711,2]
[350126494,1737645038714,-500.0,0.00016712,2]
[350126495,1737645038723,-614.77720971,0.00016712,2]
[350126497,1737645038733,-500.0,0.00016712,7]
[350126499,1737645038743,-500.0,0.00016712,2]
[350126501,1737645038753,-500.0,0.00016712,2]
[350126503,1737645038763,-500.0,0.00016712,2]
[350126505,1737645038773,-500.0,0.00016712,2]
[350126507,1737645038784,-500.0,0.00016712,2]
[350126510,1737645038794,-500.0,0.00016712,2]
[350126511,1737645038808,-500.0,0.00016712,2]
[350126513,1737645038818,-500.0,0.00016712,2]
[350126515,1737645038828,-648.49887919,0.00016712,2]
[350126517,1737645038837,-500.0,0.00016712,2]
[350126519,1737645038848,-500.0,0.00016712,2]
[350126521,1737645038858,-500.0,0.00016712,2]
[350126523,1737645038868,-500.0,0.00016712,2]
[350126526,1737645038879,-500.0,0.00016712,2]
[350126527,1737645038888,-344.57176841,0.00016712,2]
[350126530,1737645038898,-320.33809026,0.00016712,2]
[350126532,1737645038908,-500.0,0.00016712,2]
[350126534,1737645038918,-500.0,0.00016712,2]
[350126536,1737645038927,-500.0,0.00016712,2]
[350126538,1737645038937,-500.0,0.00016712,2]
[350126540,1737645038947,-500.0,0.00016712,2]
[350126542,1737645038957,-500.0,0.00016712,2]
[350126544,1737645038967,-500.0,0.00016712,2]
[350126546,1737645038977,-500.0,0.00016712,2]
[350126548,1737645038986,-500.0,0.00016712,2]
[350126549,1737645038996,-500.0,0.00016712,2]
[350126551,1737645039006,-500.0,0.00016712,2]
[350126553,1737645039016,-500.0,0.00016712,2]
[350126555,1737645039026,-500.0,0.00016712,2]
[350126557,1737645039036,-500.0,0.00016712,2]
[350126559,1737645039045,-500.0,0.00016712,2]
[350126561,1737645039061,-500.0,0.00016712,2]
[350126563,1737645039072,-500.0,0.00016712,2]
[350126565,1737645039087,-500.0,0.00016712,2]
[350126568,1737645039098,-728.78,0.00016712,2]
[350126569,1737645039107,-500.0,0.00016712,2]
[350126572,1737645039117,-309.55830001,0.00016712,2]
[350126573,1737645039130,-500.0,0.00016712,2]
[350126575,1737645039140,-500.0,0.00016712,2]
[350126577,1737645039150,-500.0,0.00016712,2]
[350126579,1737645039161,-500.0,0.00016712,2]
[350126581,1737645039172,-500.0,0.00016712,2]
[350126583,1737645039182,-500.0,0.00016712,2]
[350126585,1737645039191,-500.0,0.00016712,2]
[350126587,1737645039202,-500.0,0.00016712,2]
[350126589,1737645039212,-320.33243972,0.00016712,2]